fUST/lending_fUST_20241216
["ID","MTS","AMOUNT","RATE_DAILY","PERIOD"]
[345519692,1734311441693,-500.0,0.00026499,2]
[345519694,1734311441703,-1416.62733501,0.00026499,2]
[345519696,1734311441713,-936.82671304,0.00026499,2]
[345519698,1734311441724,-746.4041084,0.00026499,2]
[345519700,1734311441734,-500.0,0.00026499,2]
[345519702,1734311441744,-936.82671304,0.00026499,2]
[345519715,1734311441863,-1416.62733501,0.00026499,2]
[345519717,1734311441874,-746.4041084,0.00026499,2]
[345519719,1734311441884,-936.82671304,0.00026499,2]
[345519722,1734311441894,-746.4041084,0.00026499,2]
[345519724,1734311441908,-1416.62733501,0.00026499,2]
[345519726,1734311441918,-500.0,0.00026499,2]
[345519728,1734311441928,-500.0,0.00026499,2]
[345519730,1734311441937,-936.82671304,0.00026499,2]
[345519732,1734311441947,-746.4041084,0.00026499,2]
[345519734,1734311441957,-1416.62733501,0.00026499,2]
[345519736,1734311441967,-500.0,0.00026499,2]
[345519738,1734311441977,-936.82671304,0.00026499,2]
[345519740,1734311441986,-1416.62733501,0.00026499,2]
[345519742,1734311441999,-500.0,0.00026499,2]
[345519744,1734311442009,-936.82671304,0.00026499,2]
[345519746,1734311442019,-746.4041084,0.00026499,2]
[345519748,1734311442029,-500.0,0.00026499,2]
[345519750,1734311442039,-1416.62733501,0.00026499,2]
[345519752,1734311442049,-936.82671304,0.00026499,2]
[345519754,1734311442060,-746.4041084,0.00026499,2]
[345519756,1734311442069,-1416.62733501,0.00026499,2]
[345519758,1734311442079,-525.14991564,0.00026499,2]
[345519760,1734311442088,-936.82671304,0.00026499,2]
[345519762,1734311442097,-746.4041084,0.00026499,2]
[345519764,1734311442107,-500.0,0.00026499,2]
[345519766,1734311442116,-936.82671304,0.00026499,2]
[345519768,1734311442126,-1416.62733501,0.00026499,2]
[345519770,1734311442136,-746.4041084,0.00026499,2]
[345519772,1734311442145,-500.0,0.00026499,2]
[345519774,1734311442155,-936.82671304,0.00026499,2]
[345519776,1734311442166,-746.4041084,0.00026499,2]
[345519778,1734311442175,-1416.62733501,0.00026499,2]
[345519780,1734311442185,-936.82671304,0.00026499,2]
[345519782,1734311442195,-1416.62733501,0.00026499,2]
[345519784,1734311442205,-936.82671304,0.00026499,2]
[345519786,1734311442214,-746.4041084,0.00026499,2]
[345519788,1734311442224,-1416.62733501,0.00026499,2]
[345519790,1734311442234,-936.82671304,0.00026499,2]
[345519792,1734311442243,-746.4041084,0.00026499,2]
[345519794,1734311442253,-746.4041084,0.00026499,2]
[345519796,1734311442263,-936.82671304,0.00026499,2]
[345519798,1734311442273,-746.4041084,0.00026499,2]
[345519800,1734311442282,-936.82671304,0.00026499,2]
[345519802,1734311442292,-500.0,0.00026499,2]
[345519804,1734311442304,-936.82671304,0.00026499,2]
[345519806,1734311442314,-746.4041084,0.00026499,2]
[345519808,1734311442324,-500.0,0.00026499,2]
[345519810,1734311442334,-936.82671304,0.00026499,2]
[345519812,1734311442344,-746.4041084,0.00026499,2]
[345519814,1734311442354,-500.0,0.00026499,2]
[345519817,1734311442370,-936.82671304,0.00026499,2]
[345519819,1734311442380,-1416.62733501,0.00026499,2]
[345519821,1734311442390,-936.82671304,0.00026499,2]
[345519823,1734311442400,-1416.62733501,0.00026499,2]
[345519825,1734311442410,-936.82671304,0.00026499,2]
[345519827,1734311442420,-746.4041084,0.00026499,2]
[345519829,1734311442430,-936.82671304,0.00026499,2]
[345519831,1734311442440,-1416.62733501,0.00026499,2]
[345519833,1734311442450,-746.4041084,0.00026499,2]
[345519835,1734311442461,-1416.62733501,0.00026499,2]
[345519837,1734311442471,-1416.62733501,0.00026499,2]
[345519839,1734311442482,-746.4041084,0.00026499,2]
[345519841,1734311442492,-936.82671304,0.00026499,2]
[345519843,1734311442502,-746.4041084,0.00026499,2]
[345519845,1734311442512,-746.4041084,0.00026499,2]
[345519847,1734311442523,-936.82671304,0.00026499,2]
[345519849,1734311442533,-936.82671304,0.00026499,2]
[345519851,1734311442544,-746.4041084,0.00026499,2]
[345519853,1734311442554,-936.82671304,0.00026499,2]
[345519855,1734311442564,-1416.62733501,0.00026499,2]
[345519857,1734311442577,-746.4041084,0.00026499,2]
[345519859,1734311442586,-936.82671304,0.00026499,2]
[345519861,1734311442596,-1416.62733501,0.00026499,2]
[345519863,1734311442606,-746.4041084,0.00026499,2]
[345519865,1734311442615,-1416.62733501,0.00026499,2]
[345519867,1734311442625,-936.82671304,0.00026499,2]
[345519869,1734311442635,-746.4041084,0.00026499,2]
[345519871,1734311442645,-936.82671304,0.00026499,2]
[345519873,1734311442655,-1416.62733501,0.00026499,2]
[345519876,1734311442664,-746.4041084,0.00026499,2]
[345519879,1734311442674,-746.4041084,0.00026499,2]
[345519881,1734311442684,-1416.62733501,0.00026499,2]
[345519883,1734311442693,-936.82671304,0.00026499,2]
[345519885,1734311442703,-746.4041084,0.00026499,2]
[345519887,1734311442713,-1416.62733501,0.00026499,2]
[345519889,1734311442722,-746.4041084,0.00026499,2]
[345519891,1734311442732,-746.4041084,0.00026499,2]
[345519893,1734311442742,-746.4041084,0.00026499,2]
[345519895,1734311442751,-746.4041084,0.00026499,2]
[345519897,1734311442762,-227780.28204789,0.000265,2]
[345519899,1734311442772,-514276.19262902,0.000265,2]
[345519923,1734311443008,-48577.04869016,0.000265,2]
[345520249,1734311446272,-10537.0,0.000265,2]
[345520268,1734311446451,-10016.54678634,0.000265,2]
[345522619,1734311482554,999.0,0.000255,120]
[345522620,1734311653819,33333.0,0.000255,120]
[345522621,1734311685719,35000.0,0.0002401,29]
[345522622,1734311700631,31271.6015619,0.000255,120]
[345522624,1734311759729,346.063497,0.00013973,2]
[345522625,1734311937671,21.22,0.0002,30]
[345522626,1734311937696,437.78,0.0002,30]
[345522628,1734312305092,137291.44158504,0.000202,3]
[345522629,1734312305120,330.55841496,0.000202,3]
[345522646,1734312524336,200.0,0.00020222,2]
[345522693,1734312633842,-346.063497,0.00020447,2]
[345522694,1734312633852,-158.368,0.00021251,2]
[345522695,1734312633862,-817.99597153,0.00022,3]
[345522696,1734312633871,-466.33782,0.00022944,2]
[345522697,1734312633881,-2448.66251677,0.00023,2]
[345522698,1734312633891,-194.4418207,0.0002346,2]
[345522699,1734312633900,-170.437714,0.00023901,2]
[345522700,1734312633910,-4926.5828161,0.00024261,2]
[345522701,1734312633921,-300.0,0.00024518,2]
[345522702,1734312633930,-300.0,0.00024518,2]
[345522703,1734312633940,-24900.0,0.00024521,2]
[345522704,1734312633950,-1491.0472723,0.00024639,2]
[345522705,1734312633959,-2187.66439485,0.00024896,2]
[345522706,1734312633969,-251.17600502,0.000249,2]
[345522707,1734312633978,-177.33588526,0.00024973,2]
[345522708,1734312633989,-500.0,0.00024973,2]
[345522709,1734312633998,-500.0,0.00024973,2]
[345522710,1734312634008,-500.0,0.00024973,2]
[345522711,1734312634018,-500.0,0.00024973,2]
[345522712,1734312634027,-501.35475962,0.00024973,2]
[345522713,1734312634037,-483.94050518,0.00024973,2]
[345522714,1734312634049,-500.73787748,0.00024973,2]
[345522715,1734312634059,-203.64116763,0.00024973,2]
[345522716,1734312634068,-151.84573439,0.00024973,2]
[345522717,1734312634077,-4406.84071844,0.00025,2]
[345522718,1734312634087,-40474.32221584,0.00025,2]
[345522719,1734312634099,-62133.34805885,0.00025,2]
[345522720,1734312634109,-216414.23499547,0.00025,2]
[345522721,1734312634118,-19912.48088469,0.00025,2]
[345522722,1734312634128,-160.0,0.00025075,3]
[345522723,1734312634138,-176.32839639,0.000255,7]
[345522724,1734312634147,-3000.0,0.000255,2]
[345522725,1734312634157,-3000.0,0.000255,2]
[345522726,1734312634166,-3000.0,0.000255,2]
[345522727,1734312634176,-999.925,0.000255,2]
[345522728,1734312634185,-185.106,0.000255,10]
[345522729,1734312634194,-886.28154542,0.00025521,2]
[345522730,1734312634203,-1000.0,0.00025521,2]
[345522731,1734312634212,-1000.0,0.00025521,2]
[345522732,1734312634221,-1000.0,0.00025521,2]
[345522733,1734312634232,-351.6405177,0.00025541,2]
[345522734,1734312634241,-351.6405177,0.00025541,2]
[345522735,1734312634251,-351.6405177,0.00025541,2]
[345522736,1734312634261,-359.0301292,0.00025541,2]
[345522737,1734312634274,-351.6405177,0.00025641,2]
[345522738,1734312634284,-400.0,0.00025753,2]
[345522739,1734312634294,-160.0,0.00025773,4]
[345522740,1734312634304,-1000.0,0.000258,2]
[345522741,1734312634314,-11609.85725659,0.00026,20]
[345522742,1734312634324,-4608.00000003,0.00026,30]
[345522743,1734312634335,-213.7607587,0.00026027,2]
[345522744,1734312634347,-153.1150543,0.00026027,2]
[345522745,1734312634357,-153.0,0.00026027,2]
[345522746,1734312634367,-169.8306041,0.00026027,2]
[345522747,1734312634377,-153.1150543,0.00026027,2]
[345522748,1734312634387,-153.0,0.00026027,2]
[345522749,1734312634397,-153.0,0.00026027,2]
[345522750,1734312634406,-153.1150543,0.00026027,2]
[345522751,1734312634416,-155.164084,0.00026027,2]
[345522752,1734312634425,-153.0,0.00026078,2]
[345522753,1734312634434,-153.1150543,0.00026078,2]
[345522754,1734312634444,-213.7607587,0.00026078,2]
[345522755,1734312634454,-2778.24001341,0.000262,4]
[345522756,1734312634463,-858.75871347,0.00026398,2]
[345522757,1734312634472,-2632.95180499,0.000264,2]
[345522758,1734312634483,-378.82926148,0.000264,2]
[345522759,1734312634492,-311.0462254,0.000264,2]
[345522760,1734312634502,-4644.88040633,0.00026451,2]
[345522761,1734312634511,-160.0,0.00026472,5]
[345522762,1734312634521,-161.20499035,0.00026472,5]
[345522763,1734312634531,-500.0,0.00026473,2]
[345522764,1734312634541,-500.0,0.00026473,2]
[345522765,1734312634550,-501.54136981,0.00026473,2]
[345522766,1734312634558,-500.0,0.00026473,2]
[345522767,1734312634568,-505.39198387,0.00026473,2]
[345522768,1734312634578,-500.0,0.00026473,2]
[345522769,1734312634588,-262.75358759,0.00026473,2]
[345522770,1734312634598,-397.38332755,0.00026473,2]
[345522771,1734312634607,-500.71251462,0.00026473,2]
[345522772,1734312634616,-500.0,0.00026473,2]
[345522773,1734312634626,-528.2905009,0.00026473,2]
[345522774,1734312634636,-160.15470801,0.00026473,2]
[345522775,1734312634645,-219.14357272,0.00026473,2]
[345522776,1734312634654,-151.0,0.00026497,7]
[345522777,1734312634664,-154.065641,0.00026497,7]
[345522778,1734312634673,-151.0,0.00026497,7]
[345522779,1734312634682,-542.822087,0.00026497,7]
[345522780,1734312634692,-542.822087,0.00026497,7]
[345522781,1734312634702,-853.863537,0.00026497,7]
[345522782,1734312634712,-853.863537,0.00026497,7]
[345522783,1734312634722,-151.0,0.00026498,7]
[345522784,1734312634732,-151.0,0.00026498,7]
[345522785,1734312634741,-151.0,0.00026498,7]
[345522786,1734312634750,-151.0,0.00026498,7]
[345522787,1734312634760,-151.0,0.00026498,7]
[345522788,1734312634770,-151.0,0.00026498,7]
[345522789,1734312634779,-151.0,0.00026498,7]
[345522790,1734312634788,-151.0,0.00026498,7]
[345522791,1734312634798,-151.0,0.00026498,7]
[345522792,1734312634807,-151.0,0.00026498,7]
[345522793,1734312634816,-151.0,0.00026498,7]
[345522794,1734312634825,-184.974274,0.00026498,7]
[345522795,1734312634835,-151.0,0.00026498,7]
[345522796,1734312634845,-151.0,0.00026498,7]
[345522797,1734312634854,-151.0,0.00026498,7]
[345522798,1734312634864,-151.0,0.00026498,7]
[345522799,1734312634873,-151.0,0.00026498,7]
[345522800,1734312634883,-151.0,0.00026498,7]
[345522801,1734312634892,-151.0,0.00026498,7]
[345522802,1734312634902,-151.0,0.00026498,7]
[345522803,1734312634911,-151.0,0.00026498,7]
[345522804,1734312634920,-151.0,0.00026498,7]
[345522805,1734312634930,-151.0,0.00026498,7]
[345522806,1734312634939,-206.217482,0.00026498,7]
[345522807,1734312634948,-151.0,0.00026498,7]
[345522808,1734312634958,-151.0,0.00026498,7]
[345522809,1734312634967,-151.0,0.00026498,7]
[345522810,1734312634976,-151.0,0.00026498,7]
[345522811,1734312634986,-151.0,0.00026498,7]
[345522812,1734312634995,-151.0,0.00026498,7]
[345522813,1734312635005,-151.0,0.00026498,7]
[345522814,1734312635014,-151.0,0.00026498,7]
[345522815,1734312635023,-153.860935,0.00026498,7]
[345522816,1734312635033,-570.04674697,0.00026499,2]
[345522817,1734312635044,-244.93621,0.00026499,7]
[345522818,1734312635054,-244.93621,0.00026499,7]
[345522819,1734312635063,-244.93621,0.00026499,7]
[345522820,1734312635073,-244.93621,0.00026499,7]
[345522821,1734312635082,-17947.80784392,0.000265,2]
[345522822,1734312635092,-149275.70870488,0.000265,2]
[345522823,1734312635104,-73217.74645278,0.000265,2]
[345522824,1734312635115,-1441.23075239,0.000265,2]
[345522825,1734312635127,-3845.59613784,0.000265,2]
[345522826,1734312635136,-82357.49786165,0.000265,2]
[345522841,1734312638754,-2687.0048329,0.00022488,7]
[345522842,1734312638766,-1633.36127521,0.00022488,7]
[345522843,1734312638777,-724.50210689,0.00022488,7]
[345522844,1734312638788,-31020.93710845,0.00022488,7]
[345522845,1734312638810,-505.4234493,0.00022488,7]
[345522846,1734312638884,-207922.47713168,0.00022488,7]
[345522847,1734312638894,-225910.34639369,0.000265,2]
[345522848,1734312638903,-151.0,0.000265,7]
[345522849,1734312638912,-151.0,0.000265,7]
[345522850,1734312638921,-151.0,0.000265,7]
[345522851,1734312638931,-151.0,0.000265,7]
[345522852,1734312638940,-199.900747,0.000265,7]
[345522853,1734312638949,-151.0,0.000265,7]
[345522854,1734312638958,-151.0,0.000265,7]
[345522855,1734312638967,-151.0,0.000265,7]
[345522856,1734312638977,-151.0,0.000265,7]
[345522857,1734312638987,-542.822087,0.000265,7]
[345522858,1734312638998,-542.822087,0.000265,7]
[345522859,1734312639008,-155.69266,0.000265,7]
[345522860,1734312639017,-155.69266,0.000265,7]
[345522861,1734312639027,-853.863537,0.000265,7]
[345522862,1734312639038,-853.863537,0.000265,7]
[345522863,1734312639051,-151.0,0.000265,7]
[345522864,1734312639061,-151.0,0.000265,7]
[345522865,1734312639071,-366.533123,0.000265,7]
[345522866,1734312639080,-366.533123,0.000265,7]
[345522867,1734312639090,-481476.76819441,0.000265,2]
[345522868,1734312639103,-7482.75581718,0.000265,2]
[345522869,1734312639115,-8861.90000008,0.000265,2]
[345522870,1734312639126,-9356.00002302,0.000265,2]
[345522892,1734312640529,-151963.95290257,0.000265,2]
[345522893,1734312640542,-1045.74271946,0.000265,2]
[345522916,1734312644465,-285.55605673,0.00026499,2]
[345522917,1734312644474,-1147.95094327,0.000265,2]
[345522940,1734312646588,-12015.59999997,0.000265,2]
[345522941,1734312646600,-740.933486,0.000265,2]
[345522946,1734312782747,400.0,0.00013973,2]
[345522947,1734312850111,240.89990643,0.00020222,2]
[345522948,1734312903134,9359.10009357,0.0002,10]
[345522949,1734312903169,10000.0,0.0002,10]
[345522950,1734312903204,10000.0,0.0002,10]
[345522951,1734312903228,10640.89990643,0.0002,10]
[345522976,1734313824864,400.0,0.00013973,2]
[345523033,1734313834529,-2633.44010469,0.00020347,2]
[345523034,1734313834541,-400.0,0.00020447,2]
[345523035,1734313834550,-351.775931,0.00024251,2]
[345523036,1734313834560,-167.601979,0.0002482,2]
[345523037,1734313834569,-300.0,0.00025102,2]
[345523038,1734313834579,-24900.0,0.00025103,2]
[345523039,1734313834589,-637.703,0.0002517,2]
[345523040,1734313834599,-189.22331303,0.00025205,9]
[345523041,1734313834609,-300.0,0.00025499,2]
[345523042,1734313834618,-500.0,0.000255,2]
[345523043,1734313834628,-10147.48971467,0.00025628,2]
[345523044,1734313834637,-3470.64337842,0.00025653,2]
[345523045,1734313834647,-400.0,0.00025753,2]
[345523046,1734313834657,-153.0,0.00025778,2]
[345523047,1734313834666,-10147.48971467,0.00025795,2]
[345523048,1734313834676,-223.18635947,0.00026185,2]
[345523049,1734313834691,-3470.64337836,0.00026285,2]
[345523050,1734313834700,-223.18635946,0.00026292,2]
[345523051,1734313834709,-223.18635946,0.00026399,2]
[345523052,1734313834718,-958.45311597,0.000264,2]
[345523053,1734313834730,-247.7,0.000264,7]
[345523054,1734313834739,-185.73,0.000264,7]
[345523055,1734313834749,-275.28,0.000264,7]
[345523056,1734313834760,-152.0,0.00026427,2]
[345523057,1734313834769,-479.07086397,0.00026456,2]
[345523058,1734313834779,-509.09727115,0.00026473,2]
[345523059,1734313834791,-501.8853546,0.00026473,2]
[345523060,1734313834800,-500.0,0.00026473,2]
[345523061,1734313834810,-501.77002275,0.00026473,2]
[345523062,1734313834820,-503.1614515,0.00026473,2]
[345523063,1734313834829,-321.04733217,0.00026473,2]
[345523064,1734313834840,-271.73892688,0.00026473,2]
[345523065,1734313834849,-501.49317749,0.00026473,2]
[345523066,1734313834859,-500.0,0.00026473,2]
[345523067,1734313834869,-500.0,0.00026473,2]
[345523068,1734313834878,-3799.002153,0.0002648,2]
[345523069,1734313834888,-212.9238383,0.0002649,120]
[345523070,1734313834897,-285.55605672,0.00026499,2]
[345523071,1734313834907,-632.70242444,0.00026499,2]
[345523072,1734313834916,-500.0,0.00026499,2]
[345523073,1734313834926,-209.69598658,0.00026499,2]
[345523074,1734313834936,-419.70826945,0.00026499,2]
[345523075,1734313834945,-500.0,0.00026499,2]
[345523076,1734313834955,-500.0,0.00026499,2]
[345523077,1734313834965,-500.0,0.00026499,2]
[345523078,1734313834974,-500.0,0.00026499,2]
[345523079,1734313834984,-500.0,0.00026499,2]
[345523080,1734313834994,-27517.93715542,0.000265,2]
[345523081,1734313835003,-184041.44125857,0.000265,2]
[345523082,1734313835013,-240934.03574881,0.000265,2]
[345523083,1734313835025,-744.680002,0.000265,2]
[345523084,1734313835037,-4977.84955832,0.000265,2]
[345523085,1734313835049,-12259.62419372,0.000265,2]
[345523086,1734313835061,-480.29075268,0.000265,2]
[345523101,1734313839149,-10147.48971467,0.00026259,2]
[345523102,1734313839158,-500.0,0.00026498,2]
[345523104,1734313839169,-240.58130524,0.00026498,2]
[345523106,1734313839179,-500.0,0.00026498,2]
[345523108,1734313839188,-500.0,0.00026498,2]
[345523110,1734313839197,-500.0,0.00026498,2]
[345523111,1734313839207,-500.0,0.00026498,2]
[345523112,1734313839216,-500.0,0.00026498,2]
[345523113,1734313839225,-500.0,0.00026498,2]
[345523114,1734313839235,-500.0,0.00026498,2]
[345523115,1734313839244,-341.40243604,0.00026498,2]
[345523116,1734313839253,-500.0,0.00026498,2]
[345523117,1734313839263,-500.0,0.00026498,2]
[345523118,1734313839272,-500.0,0.00026498,2]
[345523119,1734313839281,-500.0,0.00026498,2]
[345523120,1734313839290,-403.91299933,0.00026498,2]
[345523121,1734313839303,-500.0,0.00026498,2]
[345523123,1734313839312,-500.0,0.00026498,2]
[345523125,1734313839321,-350.00000003,0.00026498,2]
[345523127,1734313839330,-500.0,0.00026498,2]
[345523129,1734313839340,-489.61396506,0.00026498,2]
[345523131,1734313839349,-500.0,0.00026498,2]
[345523133,1734313839358,-500.0,0.00026498,2]
[345523135,1734313839367,-500.0,0.00026498,2]
[345523137,1734313839377,-500.0,0.00026498,2]
[345523139,1734313839386,-500.0,0.00026498,2]
[345523141,1734313839396,-500.0,0.00026498,2]
[345523143,1734313839405,-356.32232248,0.00026498,2]
[345523145,1734313839415,-500.0,0.00026498,2]
[345523147,1734313839424,-500.0,0.00026498,2]
[345523149,1734313839433,-500.0,0.00026498,2]
[345523151,1734313839443,-500.0,0.00026498,2]
[345523153,1734313839452,-500.0,0.00026498,2]
[345523155,1734313839464,-500.0,0.00026498,2]
[345523157,1734313839473,-500.0,0.00026498,2]
[345523159,1734313839482,-500.0,0.00026498,2]
[345523161,1734313839492,-500.0,0.00026498,2]
[345523163,1734313839501,-500.0,0.00026498,2]
[345523175,1734313839596,-500.0,0.00026498,2]
[345523177,1734313839607,-500.0,0.00026498,2]
[345523179,1734313839617,-500.0,0.00026498,2]
[345523181,1734313839627,-500.0,0.00026498,2]
[345523183,1734313839636,-500.0,0.00026498,2]
[345523185,1734313839646,-500.0,0.00026498,2]
[345523187,1734313839656,-500.0,0.00026498,2]
[345523189,1734313839666,-500.0,0.00026498,2]
[345523191,1734313839675,-500.0,0.00026498,2]
[345523193,1734313839688,-500.0,0.00026498,2]
[345523195,1734313839698,-500.0,0.00026498,2]
[345523197,1734313839707,-500.0,0.00026498,2]
[345523199,1734313839717,-500.0,0.00026498,2]
[345523201,1734313839726,-500.0,0.00026498,2]
[345523203,1734313839737,-500.0,0.00026498,2]
[345523205,1734313839747,-500.0,0.00026498,2]
[345523207,1734313839759,-500.0,0.00026498,2]
[345523209,1734313839769,-500.0,0.00026498,2]
[345523211,1734313839778,-500.0,0.00026498,2]
[345523213,1734313839788,-500.0,0.00026498,2]
[345523215,1734313839798,-500.0,0.00026498,2]
[345523217,1734313839808,-500.0,0.00026498,2]
[345523219,1734313839817,-500.0,0.00026498,2]
[345523221,1734313839828,-500.0,0.00026498,2]
[345523223,1734313839838,-500.0,0.00026498,2]
[345523225,1734313839848,-500.0,0.00026498,2]
[345523227,1734313839858,-500.0,0.00026498,2]
[345523230,1734313839869,-500.0,0.00026498,2]
[345523231,1734313839878,-500.0,0.00026498,2]
[345523233,1734313839888,-500.0,0.00026498,2]
[345523235,1734313839899,-500.0,0.00026498,2]
[345523237,1734313839909,-500.0,0.00026498,2]
[345523240,1734313839920,-500.0,0.00026498,2]
[345523242,1734313839929,-500.0,0.00026498,2]
[345523243,1734313839939,-500.0,0.00026498,2]
[345523246,1734313839949,-500.0,0.00026498,2]
[345523247,1734313839958,-500.0,0.00026498,2]
[345523249,1734313839967,-500.0,0.00026498,2]
[345523251,1734313839977,-178.6825855,0.00026498,2]
[345523253,1734313839986,-500.0,0.00026498,2]
[345523255,1734313839996,-500.0,0.00026498,2]
[345523257,1734313840005,-500.0,0.00026498,2]
[345523260,1734313840015,-500.0,0.00026498,2]
[345523261,1734313840024,-500.0,0.00026498,2]
[345523263,1734313840034,-500.0,0.00026498,2]
[345523265,1734313840044,-500.0,0.00026498,2]
[345523267,1734313840054,-240.380884,0.00026498,2]
[345523268,1734313840063,-500.0,0.00026498,2]
[345523270,1734313840072,-500.0,0.00026498,2]
[345523272,1734313840082,-500.0,0.00026498,2]
[345523273,1734313840091,-500.0,0.00026498,2]
[345523275,1734313840100,-500.0,0.00026498,2]
[345523276,1734313840109,-500.0,0.00026498,2]
[345523278,1734313840118,-500.0,0.00026498,2]
[345523279,1734313840128,-908734.64834632,0.000265,2]
[345523281,1734313840140,-860.81001428,0.000265,2]
[345523336,1734313840901,-201370.46993247,0.000265,2]
[345523731,1734313844969,-541.65683526,0.000265,2]
[345523733,1734313844981,-496.778,0.000265,2]
[345523919,1734313846752,-9587.66751127,0.000265,2]
[345523921,1734313846764,-1410.25180871,0.000265,2]
[345523942,1734313846953,-1082.65217282,0.000265,2]
[345523944,1734313846965,-11988.00000003,0.000265,2]
[345529002,1734314564345,1002.0,0.00024,30]
[345529006,1734314733250,400.0,0.00013973,2]
[345529038,1734314965263,767.417,0.00024,30]
[345529110,1734315038190,-472.82568742,0.00020247,2]
[345529133,1734315038406,-617.36843636,0.00020247,2]
[345529135,1734315038416,-400.0,0.00020447,2]
[345529137,1734315038426,-175.887965,0.0002398,2]
[345529139,1734315038436,-300.0,0.00024123,2]
[345529141,1734315038446,-10168.8359902,0.00024124,2]
[345529143,1734315038455,-170.35008,0.00024912,2]
[345529145,1734315038464,-168.773,0.00024912,8]
[345529148,1734315038474,-24900.0,0.00024969,2]
[345529151,1734315038484,-2842.93454757,0.00025011,2]
[345529154,1734315038495,-152.0,0.00025111,2]
[345529157,1734315038504,-5500.9154605,0.00025153,2]
[345529159,1734315038514,-634.788,0.0002517,2]
[345529161,1734315038523,-300.0,0.00025499,2]
[345529163,1734315038533,-192.0,0.00025676,2]
[345529165,1734315038542,-2842.93454754,0.00025733,2]
[345529167,1734315038551,-400.0,0.00025753,2]
[345529168,1734315038561,-2000.0,0.000258,2]
[345529169,1734315038571,-500.0,0.00026,120]
[345529170,1734315038580,-163.765388,0.00026,30]
[345529171,1734315038589,-10147.48971467,0.00026105,2]
[345529172,1734315038599,-1000.0,0.000262,3]
[345529173,1734315038610,-188.39,0.00026209,2]
[345529174,1734315038620,-2370.9624636,0.00026234,4]
[345529175,1734315038630,-153.0,0.00026301,2]
[345529176,1734315038639,-153.0,0.00026301,2]
[345529177,1734315038649,-153.0,0.00026301,2]
[345529178,1734315038659,-666.0,0.0002639,2]
[345529179,1734315038668,-1759.39056239,0.00026391,3]
[345529180,1734315038677,-862.60780431,0.000264,2]
[345529181,1734315038687,-166.0,0.00026404,3]
[345529182,1734315038696,-166.0,0.00026404,3]
[345529183,1734315038706,-166.0,0.00026404,3]
[345529184,1734315038715,-166.0,0.00026404,3]
[345529185,1734315038725,-166.0,0.00026404,3]
[345529186,1734315038735,-170.0,0.00026404,3]
[345529187,1734315038745,-704.6784,0.0002643,15]
[345529188,1734315038754,-2842.93454754,0.00026456,2]
[345529189,1734315038765,-30372.82551282,0.00026464,2]
[345529190,1734315038775,-500.0,0.00026473,2]
[345529191,1734315038784,-160.18970801,0.00026473,2]
[345529192,1734315038794,-160.69008513,0.00026473,2]
[345529193,1734315038803,-500.0,0.00026473,2]
[345529194,1734315038813,-500.0,0.00026473,2]
[345529195,1734315038823,-500.0,0.00026488,2]
[345529196,1734315038833,-500.0,0.00026488,2]
[345529197,1734315038843,-500.0,0.00026488,2]
[345529198,1734315038855,-500.0,0.00026488,2]
[345529199,1734315038868,-500.0,0.00026488,2]
[345529200,1734315038877,-500.0,0.00026488,2]
[345529201,1734315039022,-303.91299933,0.00026488,2]
[345529202,1734315039034,-341.40243604,0.00026488,2]
[345529203,1734315039044,-500.0,0.00026488,2]
[345529204,1734315039054,-240.58130524,0.00026488,2]
[345529205,1734315039068,-500.0,0.00026488,2]